bitfinex-derivatives/quotes_BTCF0:USTF0_20240917
["timestamp","ask_amount","ask_price","bid_price","bid_amount"]
[1726578817897,0.0018,59332.0,59331.0,1.78883369]
[1726578819894,0.0018,59332.0,59331.0,1.70455669]
[1726578820097,0.086075,59332.0,59331.0,0.07811669]
[1726578822801,0.086075,59332.0,59331.0,0.0282606]
[1726578822802,0.17035,59332.0,59331.0,0.0282606]
[1726578823204,0.17035,59332.0,59331.0,0.005]
[1726578823408,0.086075,59332.0,59331.0,0.00752818]
[1726578823710,0.17035,59332.0,59331.0,0.00752818]
[1726578824197,0.16935,59332.0,59331.0,0.00252818]
[1726578824403,0.17035,59332.0,59331.0,0.00347182]
[1726578824713,0.17035,59332.0,59322.0,0.0039]
[1726578824714,0.084288,59323.0,59322.0,0.0039]
[1726578824898,0.244288,59323.0,59321.0,0.00252859]
[1726578825105,0.0008,59322.0,59321.0,0.02500149]
[1726578825299,0.245088,59323.0,59321.0,0.00252859]
[1726578826209,0.084289,59322.0,59321.0,0.00252859]
[1726578826412,0.084289,59322.0,59321.0,0.02542039]
[1726578828010,0.085289,59322.0,59321.0,0.0228918]
[1726578828312,0.084295,59319.0,59313.0,0.0039]
[1726578828516,0.084295,59319.0,59313.0,0.02226572]
[1726578828517,0.0008,59314.0,59313.0,0.02226572]
[1726578828815,0.0008,59314.0,59312.0,0.084303]
[1726578829113,0.0008,59313.0,59312.0,0.084303]
[1726578831011,0.0008,59313.0,59310.0,0.00252905]
[1726578831012,0.084305,59311.0,59310.0,0.00252905]
[1726578831214,0.53021,59311.0,59310.0,0.02490372]
[1726578831416,0.53021,59311.0,59310.0,0.00252905]
[1726578831417,0.445905,59311.0,59310.0,0.00252905]
[1726578831610,0.53021,59311.0,59310.0,0.00252905]
[1726578831814,0.3616,59311.0,59301.0,0.0039]
[1726578832010,0.5216,59302.0,59301.0,0.0232764]
[1726578832206,0.084323,59299.0,59292.0,0.0039]
[1726578832411,0.0008,59293.0,59291.0,0.084333]
[1726578832714,0.5208,59297.0,59292.0,0.445132]
[1726578833421,0.16,59297.0,59292.0,0.445132]
[1726578833615,0.16,59297.0,59292.0,0.3608]
[1726578833918,0.16,59297.0,59295.0,0.084328]
[1726578834122,0.16,59297.0,59296.0,0.084326]
[1726578834420,0.001,59297.0,59296.0,0.084326]
[1726578834916,0.161,59297.0,59292.0,0.445132]
[1726578835104,0.0008,59293.0,59292.0,0.445132]
[1726578835311,0.0008,59293.0,59292.0,0.605132]
[1726578835516,0.0008,59293.0,59292.0,1.711092]
[1726578835712,0.001,59297.0,59296.0,0.168652]
[1726578836011,0.001,59297.0,59296.0,0.329452]
[1726578836313,0.00252991,59305.0,59304.0,0.084315]
[1726578838919,0.00252991,59305.0,59304.0,0.02246991]
[1726578839125,0.00252991,59305.0,59302.0,0.3608]
[1726578839318,0.16,59303.0,59301.0,0.00252939]
[1726578839522,0.0008,59302.0,59301.0,0.00252939]
[1726578839915,0.0008,59302.0,59301.0,0.08684839]
[1726578840119,0.0008,59302.0,59301.0,0.11001294]
[1726578840420,0.0008,59302.0,59301.0,0.47081294]
[1726578840622,0.0008,59302.0,59301.0,0.11001294]
[1726578841321,0.1608,59302.0,59301.0,0.11001294]
[1726578841624,0.1608,59302.0,59301.0,0.02569394]
[1726578841922,0.1618,59302.0,59301.0,0.02769394]
[1726578842111,0.1618,59302.0,59301.0,0.11201294]
[1726578843819,0.0018,59302.0,59301.0,0.11201294]
[1726578844224,0.0018,59302.0,59301.0,0.55713194]
[1726578844516,0.0018,59302.0,59301.0,0.47281294]
[1726578844722,0.0018,59302.0,59301.0,0.55713194]
[1726578845423,0.0018,59302.0,59301.0,0.47281294]
[1726578848421,0.0018,59302.0,59301.0,0.02769394]
[1726578848422,0.606918,59302.0,59301.0,0.02769394]
[1726578849529,0.606918,59302.0,59301.0,0.00452939]
[1726578849728,0.5226,59302.0,59301.0,0.00452939]
[1726578850324,0.606918,59302.0,59301.0,0.00452939]
[1726578850835,0.691236,59302.0,59301.0,0.00452939]
[1726578852324,0.606918,59302.0,59301.0,0.00452939]
[1726578853125,0.606918,59302.0,59296.0,0.0008]
[1726578853126,0.691236,59302.0,59296.0,0.0008]
[1726578853332,0.605525,59297.0,59296.0,0.0008]
[1726578854824,0.605525,59297.0,59296.0,0.0038]
[1726578855027,1.111445,59297.0,59296.0,0.0038]
[1726578856324,0.605525,59297.0,59296.0,0.0038]
[1726578856827,0.606525,59297.0,59296.0,0.0008]
[1726578858326,0.084328,59295.0,59294.0,0.02275478]
[1726578858540,0.5222,59297.0,59290.0,0.00252991]
[1726578858725,0.5216,59291.0,59290.0,0.00252991]
[1726578859030,0.5216,59291.0,59286.0,0.084341]
[1726578859031,0.5216,59291.0,59286.0,0.06919014]
[1726578859338,0.0008,59287.0,59286.0,0.06919014]
[1726578860033,0.1608,59287.0,59286.0,0.02231923]
[1726578860341,0.245139,59287.0,59281.0,0.0638]
[1726578860546,0.16,59282.0,59281.0,0.0638]
[1726578860724,0.1608,59282.0,59281.0,0.0638]
[1726578861034,0.1608,59282.0,59277.0,0.084353]
[1726578861236,0.5208,59278.0,59277.0,0.084353]
[1726578861436,0.5216,59278.0,59276.0,0.02499598]
[1726578861937,0.0008,59277.0,59276.0,0.02499598]
[1726578863339,0.085153,59277.0,59276.0,0.02246546]
[1726578863536,0.085153,59277.0,59271.0,0.3608]
[1726578863843,0.1608,59272.0,59271.0,0.3608]
[1726578865129,0.0008,59272.0,59271.0,0.445162]
[1726578865838,0.0008,59272.0,59271.0,0.46776292]
[1726578866136,0.0018,59272.0,59271.0,0.46776292]
[1726578866934,0.0018,59272.0,59271.0,1.21312292]
[1726578867140,0.0018,59272.0,59271.0,1.37312292]
[1726578869342,0.0018,59272.0,59271.0,1.21312292]
[1726578869844,0.0018,59272.0,59271.0,0.10696292]
[1726578874046,0.0018,59272.0,59271.0,0.77312292]
[1726578874244,0.084352,59278.0,59277.0,0.084353]
[1726578874452,0.084352,59278.0,59277.0,0.085153]
[1726578874746,0.08687252,59285.0,59283.0,0.084345]
[1726578874934,0.445144,59284.0,59283.0,0.084345]
[1726578875337,0.00253052,59285.0,59280.0,0.08687717]
[1726578875338,0.084348,59281.0,59280.0,0.08687717]
[1726578875534,0.084344,59284.0,59283.0,0.084344]
[1726578876447,0.00253052,59285.0,59284.0,0.084344]
[1726578877339,0.00253052,59285.0,59284.0,0.168688]
[1726578877535,0.445134,59291.0,59290.0,0.084335]
[1726578877841,0.445134,59291.0,59282.0,0.16]
[1726578877842,0.084337,59289.0,59282.0,0.16]
[1726578878146,0.0008,59283.0,59282.0,0.10696059]
[1726578879636,0.0018,59283.0,59282.0,0.10796059]
[1726578880046,0.0018,59283.0,59282.0,0.19230659]
[1726578880241,0.0018,59283.0,59282.0,1.21400059]
[1726578880444,0.0039,59292.0,59291.0,0.084334]
[1726578880650,0.00252999,59294.0,59291.0,0.16]
[1726578880950,0.0039,59301.0,59300.0,0.084321]
[1726578881254,0.0039,59301.0,59293.0,0.3608]
[1726578881255,0.08684391,59305.0,59304.0,0.084315]
[1726578881747,0.084319,59302.0,59301.0,0.084319]
[1726578881948,0.085119,59302.0,59301.0,0.084319]
[1726578882740,0.0008,59302.0,59301.0,0.084319]
[1726578883057,0.0008,59302.0,59299.0,0.16]
[1726578883058,0.084321,59300.0,59299.0,0.16]
[1726578883256,0.084321,59300.0,59297.0,0.08685358]
[1726578883257,0.084324,59298.0,59297.0,0.00252958]
[1726578883441,0.245124,59298.0,59297.0,0.08685458]
[1726578883645,0.244324,59298.0,59297.0,0.08685458]
[1726578885041,0.244324,59298.0,59297.0,0.10934557]
[1726578885242,0.244324,59298.0,59297.0,0.02502057]
[1726578885751,0.244324,59298.0,59297.0,0.10934557]
[1726578885949,0.244324,59298.0,59297.0,0.11134557]
[1726578887053,0.16,59298.0,59297.0,0.11134557]
[1726578889544,0.244324,59298.0,59297.0,0.02742057]
[1726578890152,0.412972,59298.0,59297.0,0.02742057]
[1726578890563,0.328648,59298.0,59297.0,0.02742057]
[1726578890847,0.328648,59298.0,59297.0,0.00492958]
[1726578891148,0.244324,59298.0,59297.0,0.00492958]
[1726578891352,0.3616,59300.0,59297.0,0.00492958]
[1726578891547,0.16,59298.0,59297.0,0.00492958]
[1726578891747,0.16,59298.0,59297.0,0.00252958]
[1726578891748,0.161,59298.0,59297.0,0.00252958]
[1726578892340,0.245324,59298.0,59297.0,0.00252958]
[1726578892547,0.244324,59298.0,59297.0,0.00252958]
[1726578892743,0.084325,59297.0,59288.0,0.3647]
[1726578892943,0.084325,59297.0,59285.0,0.0016]
[1726578892944,0.1604,59289.0,59285.0,0.0016]
[1726578893352,0.0004,59286.0,59285.0,0.0016]
[1726578893543,0.244737,59289.0,59285.0,0.0016]
[1726578893745,0.244737,59289.0,59288.0,0.0004]
[1726578894057,0.0004,59289.0,59288.0,0.0004]
[1726578894354,0.244736,59289.0,59288.0,0.0004]
[1726578894658,0.301636,59289.0,59288.0,0.0004]
[1726578895560,0.302636,59289.0,59288.0,0.0004]
[1726578896257,0.301636,59289.0,59288.0,0.0004]
[1726578896552,0.302636,59289.0,59288.0,0.0074]
[1726578897256,0.303636,59289.0,59288.0,0.0004]
[1726578901057,0.2193,59289.0,59288.0,0.0004]
[1726578901256,0.0593,59289.0,59288.0,0.0004]
[1726578901459,0.143636,59289.0,59288.0,0.0004]
[1726578901759,0.0593,59289.0,59288.0,0.0004]
[1726578901955,0.0024,59289.0,59288.0,0.084738]
[1726578902257,0.0024,59289.0,59288.0,0.445538]
[1726578903561,0.086736,59289.0,59288.0,0.3612]
[1726578905364,0.0024,59289.0,59288.0,0.445538]
[1726578907263,0.00252999,59293.0,59292.0,0.084332]
[1726578907456,0.08686099,59293.0,59292.0,0.244732]
[1726578907966,0.33119199,59293.0,59292.0,0.0004]
[1726578908171,0.08686099,59293.0,59292.0,0.0004]
[1726578908354,0.445127,59296.0,59292.0,0.5212]
[1726578908355,0.084327,59296.0,59292.0,0.5212]
[1726578908663,0.0572,59299.0,59296.0,0.084326]
[1726578908664,0.084326,59297.0,59296.0,0.084326]
[1726578908859,0.141523,59299.0,59296.0,0.084726]
[1726578908860,0.084324,59298.0,59296.0,0.084726]
[1726578909161,0.084325,59297.0,59296.0,0.0004]
[1726578909551,0.4151,59301.0,59296.0,0.1604]
[1726578909552,0.3608,59301.0,59296.0,0.1604]
[1726578909764,0.0532,59312.0,59304.0,0.084315]
[1726578909955,0.3608,59308.0,59304.0,0.084715]
[1726578910259,0.3608,59308.0,59304.0,0.084315]
[1726578910260,0.084313,59306.0,59304.0,0.084315]
[1726578910461,0.084308,59309.0,59304.0,0.445115]
[1726578910665,0.08431,59308.0,59304.0,0.445115]
[1726578911260,0.08684391,59305.0,59304.0,0.3608]
[1726578911465,0.00252991,59305.0,59304.0,0.3608]
[1726578912256,0.00252991,59305.0,59304.0,0.605115]
[1726578912966,0.00252991,59305.0,59304.0,0.606115]
[1726578912967,0.00752991,59305.0,59304.0,0.606115]
[1726578913466,0.00752991,59305.0,59304.0,0.62941484]
[1726578914365,0.62127191,59305.0,59304.0,0.02429984]
[1726578914569,0.62127191,59305.0,59304.0,0.001]
[1726578914771,0.64535791,59305.0,59304.0,0.001]
[1726578915467,1.66692391,59305.0,59304.0,0.001]
[1726578915862,0.42212991,59305.0,59304.0,0.001]
[1726578916163,0.36832991,59305.0,59304.0,0.001]
[1726578916760,0.36832991,59305.0,59304.0,0.085315]
[1726578916966,0.36832991,59305.0,59304.0,0.001]
[1726578917152,0.45264391,59305.0,59304.0,0.001]
[1726578917358,0.95852391,59305.0,59304.0,0.001]
[1726578917666,0.005,59305.0,59304.0,0.3618]
[1726578917871,0.005,59305.0,59304.0,0.001]
[1726578918373,0.089314,59305.0,59304.0,0.001]
[1726578918960,0.005,59305.0,59304.0,0.001]
[1726578919569,0.089314,59305.0,59304.0,0.001]
[1726578920674,0.084324,59298.0,59295.0,0.31979379]
[1726578920973,0.0004,59296.0,59295.0,0.3422077]
[1726578921167,0.0004,59296.0,59295.0,0.02241391]
[1726578921168,0.084726,59296.0,59295.0,0.02241391]
[1726578921370,0.084726,59296.0,59288.0,0.086337]
[1726578921572,0.1604,59293.0,59288.0,0.086337]
[1726578921765,0.244731,59293.0,59288.0,0.002]
[1726578921971,0.084336,59289.0,59288.0,0.002]
[1726578922162,0.5208,59289.0,59288.0,0.02458473]
[1726578922359,0.3612,59289.0,59288.0,0.002]
[1726578922564,0.605536,59289.0,59288.0,0.002]
[1726578923175,0.68349067,59289.0,59288.0,0.002]
[1726578923663,0.606536,59289.0,59288.0,0.004]
[1726578923877,1.712536,59289.0,59288.0,0.004]
[1726578924173,0.446536,59289.0,59288.0,0.004]
[1726578925361,0.3622,59289.0,59288.0,0.004]
[1726578925580,0.3632,59289.0,59288.0,0.002]
[1726578925764,0.447536,59289.0,59288.0,0.002]
[1726578926568,0.3632,59289.0,59288.0,0.002]
[1726578926965,0.3632,59289.0,59288.0,0.086338]
[1726578927276,0.0024,59289.0,59288.0,0.170676]
[1726578927574,0.3608,59295.0,59294.0,0.084329]
[1726578927770,0.3608,59295.0,59294.0,0.244729]
[1726578928168,0.3608,59302.0,59299.0,0.084322]
[1726578928369,0.088212,59307.0,59301.0,0.1604]
[1726578928568,0.3608,59309.0,59308.0,0.084309]
[1726578928874,0.3608,59309.0,59306.0,0.16]
[1726578928875,0.445108,59309.0,59306.0,0.16]
[1726578929077,0.0004,59307.0,59306.0,0.084312]
[1726578929482,0.0004,59307.0,59306.0,0.244312]
[1726578929673,0.0004,59307.0,59306.0,0.084312]
[1726578931273,0.0004,59307.0,59305.0,0.0515]
[1726578931475,0.0004,59306.0,59304.0,0.00252934]
[1726578931682,0.0004,59305.0,59304.0,0.00252934]
[1726578931877,0.0004,59306.0,59304.0,0.00252934]
[1726578932077,0.0004,59306.0,59305.0,0.0004]
[1726578932781,0.0004,59306.0,59305.0,0.00036]
[1726578933286,0.07838058,59306.0,59305.0,0.00036]
[1726578933683,0.08438058,59306.0,59305.0,0.001]
[1726578934578,0.08438058,59306.0,59301.0,0.0004]
[1726578934779,0.0004,59302.0,59298.0,0.0515]
[1726578934992,0.0004,59299.0,59298.0,0.0515]
[1726578935469,0.0004,59299.0,59298.0,0.135824]
[1726578936078,0.0004,59299.0,59298.0,0.15681928]
[1726578936474,0.07838058,59299.0,59298.0,0.51761928]
[1726578936672,0.0004,59299.0,59298.0,0.51761928]
[1726578936870,0.0034,59299.0,59298.0,0.51761928]
[1726578938691,0.0024,59299.0,59298.0,0.51761928]
[1726578939593,0.07798058,59305.0,59304.0,0.084315]
[1726578939781,0.0004,59306.0,59305.0,0.314314]
[1726578939974,0.0004,59306.0,59305.0,0.314714]
[1726578940392,0.0004,59306.0,59305.0,0.366914]
[1726578940593,0.0004,59306.0,59305.0,0.451228]
[1726578940781,0.449001,59314.0,59313.0,0.084302]
[1726578940991,0.445101,59314.0,59313.0,0.084702]
[1726578941284,0.3608,59314.0,59313.0,0.084702]
[1726578942689,0.3748,59314.0,59313.0,0.085702]
[1726578942886,0.014,59314.0,59313.0,0.446502]
[1726578943686,0.014,59314.0,59313.0,0.530804]
[1726578943894,0.014,59314.0,59313.0,0.446502]
[1726578944878,0.014,59314.0,59313.0,0.530804]
[1726578945193,0.0039,59323.0,59322.0,0.084289]
[1726578945493,0.084288,59323.0,59322.0,0.0004]
[1726578945785,0.168576,59323.0,59322.0,0.0004]
[1726578946178,0.084288,59323.0,59322.0,0.0004]
[1726578946383,0.098288,59323.0,59322.0,0.0014]
[1726578947687,0.604008,59323.0,59322.0,0.0014]
[1726578947893,1.190008,59323.0,59322.0,0.0004]
[1726578948081,1.195008,59323.0,59322.0,0.0014]
[1726578949189,0.089288,59323.0,59322.0,0.0014]
[1726578953287,0.249288,59323.0,59322.0,0.0014]
[1726578953491,0.249288,59323.0,59319.0,0.02116387]
[1726578953492,0.084292,59320.0,59319.0,0.02116387]
[1726578953687,0.084292,59320.0,59311.0,0.084305]
[1726578953688,0.16,59312.0,59311.0,0.084305]
[1726578953881,0.5212,59312.0,59308.0,0.084309]
[1726578954087,0.0004,59309.0,59308.0,0.084309]
[1726578955200,0.0004,59309.0,59306.0,0.0252633]
[1726578955201,0.0004,59309.0,59306.0,0.04669289]
[1726578955489,0.3608,59312.0,59306.0,0.04669289]
[1726578955490,0.084711,59307.0,59306.0,0.02142959]
[1726578955691,0.084711,59307.0,59302.0,0.08684701]
[1726578955998,0.0004,59303.0,59302.0,0.10786374]
[1726578956500,0.084716,59303.0,59302.0,0.02354574]
[1726578957993,0.085716,59303.0,59302.0,0.02354574]
[1726578958193,0.0014,59303.0,59302.0,0.10786374]
[1726578958494,0.0014,59303.0,59302.0,0.02101673]
[1726578958693,0.08432,59301.0,59297.0,0.084324]
[1726578958897,0.0004,59298.0,59297.0,0.084324]
[1726578959989,0.0004,59298.0,59296.0,0.02177793]
[1726578960296,0.3608,59299.0,59296.0,0.084325]
[1726578960297,0.0004,59297.0,59296.0,0.084325]
[1726578961802,0.0506,59317.0,59297.0,0.084325]
[1726578962092,0.0506,59317.0,59295.0,0.3608]
[1726578962093,0.0506,59317.0,59316.0,0.0004]
[1726578962299,0.47378976,59317.0,59316.0,0.0004]
[1726578963398,0.38949276,59317.0,59316.0,0.0004]
[1726578964001,0.0506,59317.0,59316.0,0.0004]
[1726578964197,0.134897,59317.0,59316.0,0.0004]
[1726578964497,0.222194,59317.0,59316.0,0.0014]
[1726578965087,0.137897,59317.0,59316.0,0.0014]
[1726578965799,0.135897,59317.0,59316.0,0.0014]
[1726578966801,0.220194,59317.0,59316.0,0.0014]
[1726578967004,0.084308,59309.0,59308.0,0.00252898]
[1726578967206,0.244708,59309.0,59308.0,0.00252898]
[1726578967401,0.329016,59309.0,59308.0,0.00252898]
[1726578968299,0.244708,59309.0,59308.0,0.00252898]
[1726578969107,0.247708,59309.0,59308.0,0.00252898]
[1726578969703,0.087708,59309.0,59308.0,0.00252898]
[1726578970597,0.084708,59309.0,59308.0,0.00252898]
[1726578970793,0.089708,59309.0,59308.0,0.00252898]
[1726578971209,0.174016,59309.0,59308.0,0.00252898]
[1726578971410,0.329016,59309.0,59308.0,0.00252898]
[1726578971609,0.329016,59309.0,59308.0,0.00352898]
[1726578971610,0.334016,59309.0,59308.0,0.00352898]
[1726578972308,0.169016,59309.0,59308.0,0.00252898]
[1726578972500,0.174016,59309.0,59308.0,0.00352898]
[1726578973211,0.089708,59309.0,59308.0,0.00352898]
[1726578974010,0.088708,59309.0,59308.0,0.00352898]
[1726578974395,0.333016,59309.0,59308.0,0.00352898]
[1726578976814,0.329016,59309.0,59308.0,0.00252898]
[1726578977006,0.333016,59309.0,59308.0,0.00352898]
[1726578977608,0.329016,59309.0,59308.0,0.00252898]
[1726578977807,0.333016,59309.0,59308.0,0.00352898]
[1726578981117,0.173016,59309.0,59308.0,0.00352898]
[1726578981420,0.333016,59309.0,59308.0,0.00352898]
[1726578982115,0.084325,59297.0,59296.0,0.0512]
[1726578982319,0.084725,59297.0,59296.0,0.0512]
[1726578982516,0.445525,59297.0,59296.0,0.0512]
[1726578983031,0.445525,59297.0,59296.0,0.07259706]
[1726578983217,0.614175,59297.0,59296.0,0.02139706]
[1726578983417,0.252978,59296.0,59295.0,0.0036]
[1726578983621,0.084344,59284.0,59283.0,0.0513]
[1726578983922,0.085144,59284.0,59283.0,0.07280245]
[1726578984830,0.084344,59284.0,59283.0,0.07280245]
[1726578985525,0.084344,59284.0,59283.0,0.02150245]
[1726578985731,0.084344,59284.0,59279.0,0.0039]
[1726578985732,0.084349,59281.0,59279.0,0.0039]
[1726578985936,0.0008,59280.0,59279.0,0.02129162]
[1726578986230,0.0008,59280.0,59276.0,0.0516]
[1726578986431,0.0008,59277.0,59276.0,0.07327671]
[1726578987232,0.0008,59277.0,59276.0,0.15763171]
[1726578987734,0.0018,59277.0,59276.0,0.17163171]
[1726578989828,0.0008,59277.0,59276.0,0.15763171]
[1726578990026,0.0018,59277.0,59276.0,0.17163171]
[1726578992428,0.0018,59277.0,59276.0,0.08727671]
[1726578992622,0.170506,59277.0,59276.0,0.08727671]
[1726578992825,0.170506,59277.0,59276.0,0.03567671]
[1726578993538,0.170506,59277.0,59276.0,0.014]
[1726578994234,0.0018,59277.0,59276.0,0.014]
[1726578994439,0.0018,59277.0,59276.0,0.013]
[1726578996833,0.0018,59277.0,59276.0,0.097355]
[1726578999034,0.0018,59277.0,59276.0,0.013]
[1726578999243,0.086153,59277.0,59276.0,0.013]
[1726579002035,0.34029518,59277.0,59276.0,0.013]
[1726579004039,0.42464818,59277.0,59276.0,0.013]
[1726579004936,0.34029518,59277.0,59276.0,0.013]
[1726579005937,0.50029518,59277.0,59276.0,0.013]
[1726579006137,0.58464818,59277.0,59276.0,0.013]
[1726579006338,0.50029518,59277.0,59276.0,0.013]
[1726579006540,0.58464818,59277.0,59276.0,0.013]
[1726579006737,0.50029518,59277.0,59276.0,0.013]
[1726579006939,0.58464818,59277.0,59276.0,0.013]
[1726579007237,0.50029518,59277.0,59276.0,0.013]
[1726579007945,0.58464818,59277.0,59276.0,0.013]
[1726579008149,0.50029518,59277.0,59276.0,0.013]
[1726579008536,0.084356,59275.0,59274.0,0.02175491]
[1726579008739,0.084359,59273.0,59271.0,0.00253023]
[1726579008940,0.16,59272.0,59271.0,0.00253023]
[1726579009149,0.1608,59272.0,59271.0,0.00253023]
[1726579009443,0.244361,59272.0,59271.0,0.00253023]
[1726579009948,0.244361,59272.0,59271.0,0.02446447]
[1726579010151,0.245361,59272.0,59271.0,0.01653023]
[1726579020152,0.161,59272.0,59271.0,0.10089223]
[1726579020360,0.001,59272.0,59271.0,0.10089223]
[1726579022157,0.245361,59272.0,59271.0,0.01653023]
[1726579023159,0.245361,59272.0,59271.0,0.10089223]
[1726579023660,0.161,59272.0,59271.0,0.09080301]
[1726579024858,0.245361,59272.0,59271.0,0.09080301]
[1726579025059,0.161,59272.0,59271.0,0.09080301]
[1726579025454,0.245361,59272.0,59271.0,0.09080301]
[1726579025857,0.161,59272.0,59271.0,0.09080301]
[1726579026753,0.245361,59272.0,59271.0,0.09080301]
[1726579027451,0.245361,59272.0,59271.0,0.00644101]
[1726579029162,0.161,59272.0,59271.0,0.00644101]
[1726579029355,0.245361,59272.0,59271.0,0.00644101]
[1726579029859,0.084365,59269.0,59268.0,0.02162141]
[1726579030077,0.084372,59265.0,59262.0,0.045]
[1726579030255,0.16,59263.0,59262.0,0.045]
[1726579030455,0.16,59263.0,59262.0,0.129375]
[1726579030761,0.16,59263.0,59262.0,0.15071299]
[1726579031467,0.16,59263.0,59262.0,0.09896246]
[1726579031668,0.3608,59266.0,59264.0,0.084372]
[1726579031669,0.5208,59266.0,59264.0,0.084372]
[1726579031963,0.5208,59266.0,59265.0,0.084371]
[1726579033270,0.605169,59266.0,59262.0,0.02133799]
[1726579033462,0.0008,59263.0,59260.0,0.3608]
[1726579033668,0.0008,59263.0,59262.0,0.084375]
[1726579034971,0.0008,59263.0,59262.0,0.16875]
[1726579035173,0.0008,59269.0,59268.0,0.084366]
[1726579035354,0.3608,59278.0,59268.0,1.111326]
[1726579035558,0.3608,59278.0,59277.0,0.084353]
[1726579035971,0.3608,59278.0,59274.0,0.00253057]
[1726579036166,0.0008,59275.0,59274.0,0.00253057]
[1726579036365,0.244355,59276.0,59274.0,0.08688857]
[1726579036569,0.084356,59275.0,59274.0,0.00413057]
[1726579037361,0.084356,59275.0,59274.0,0.08848857]
[1726579037564,0.3608,59278.0,59274.0,0.00413057]
[1726579037864,0.3608,59278.0,59277.0,0.084353]
[1726579038762,0.445152,59278.0,59277.0,0.084353]
[1726579039370,0.451152,59278.0,59277.0,0.085353]
[1726579039764,0.451152,59278.0,59277.0,0.001]
[1726579040869,0.3668,59278.0,59277.0,0.001]
[1726579041565,0.3668,59278.0,59276.0,0.084354]
[1726579041566,0.3668,59278.0,59276.0,0.070911]
[1726579041766,0.3678,59278.0,59277.0,0.001]
[1726579042466,0.3608,59278.0,59276.0,0.070911]
[1726579042667,0.3608,59278.0,59277.0,0.001]
[1726579042668,0.3668,59278.0,59277.0,0.001]
[1726579042971,0.3668,59278.0,59276.0,0.070911]
[1726579042972,0.44480938,59278.0,59276.0,0.06238621]
[1726579043173,0.23840938,59277.0,59276.0,0.06238621]
[1726579044771,0.23840938,59277.0,59276.0,0.06338621]
[1726579044962,0.07840938,59277.0,59276.0,0.06338621]
[1726579045162,0.0004,59277.0,59276.0,0.06338621]
[1726579045677,0.0044,59277.0,59276.0,0.06238621]
[1726579047372,0.0039,59288.0,59287.0,0.084339]
[1726579047568,0.0461,59292.0,59287.0,0.0004]
[1726579047569,0.130433,59292.0,59287.0,0.0004]
[1726579047773,0.084332,59292.0,59291.0,0.084733]
[1726579047976,0.084332,59292.0,59291.0,0.084333]
[1726579048176,0.0455,59295.0,59294.0,0.084329]
[1726579048483,0.0454,59298.0,59297.0,0.084325]
[1726579048775,0.084323,59299.0,59298.0,0.084324]
[1726579048970,0.084323,59299.0,59298.0,0.084724]
[1726579049984,0.3647,59308.0,59298.0,0.0004]
[1726579050278,0.445109,59308.0,59307.0,0.0004]
[1726579051965,0.3608,59308.0,59307.0,0.084711]
[1726579052875,0.3728,59308.0,59307.0,0.085711]
[1726579053471,0.3728,59308.0,59307.0,0.130611]
[1726579053666,0.012,59308.0,59307.0,0.491411]
[1726579054682,0.445106,59311.0,59309.0,0.084307]
[1726579055179,0.445105,59311.0,59310.0,0.0004]
[1726579055370,0.68941,59311.0,59310.0,0.0004]
[1726579055772,0.258305,59311.0,59310.0,0.0004]
[1726579057379,0.014,59311.0,59310.0,0.0004]
[1726579057576,0.014,59311.0,59310.0,0.244707]
[1726579057778,0.013,59311.0,59310.0,0.085707]
[1726579059282,0.097305,59311.0,59310.0,0.0014]
[1726579060484,0.013,59311.0,59310.0,0.0014]
[1726579061176,0.097305,59311.0,59310.0,0.0014]
[1726579063581,0.084305,59311.0,59310.0,0.0004]
[1726579063783,0.089305,59311.0,59310.0,0.0004]
[1726579064472,0.087305,59311.0,59310.0,0.0004]
[1726579064986,0.448105,59311.0,59310.0,0.0004]
[1726579065187,0.445105,59311.0,59310.0,0.0004]
[1726579065488,0.450105,59311.0,59310.0,0.0004]
[1726579066282,0.450105,59311.0,59306.0,0.0106209]
[1726579066488,0.0004,59307.0,59305.0,0.084312]
[1726579066688,0.0004,59306.0,59305.0,0.084312]
[1726579066896,0.0004,59307.0,59305.0,0.084312]
[1726579067086,0.0004,59307.0,59306.0,0.0004]
[1726579068377,0.0004,59307.0,59305.0,0.084312]
[1726579068587,0.0004,59306.0,59305.0,0.10614608]
[1726579069685,0.3612,59306.0,59305.0,0.02183408]
[1726579069888,0.3612,59306.0,59304.0,0.00252911]
[1726579069889,0.084314,59305.0,59304.0,0.00252911]
[1726579070086,0.294114,59305.0,59304.0,0.00252911]
[1726579070279,0.2098,59305.0,59304.0,0.00252911]
[1726579070489,0.294114,59305.0,59304.0,0.00252911]
[1726579071293,0.299114,59305.0,59304.0,0.00252911]
[1726579071885,0.298114,59305.0,59304.0,0.00252911]
[1726579073284,0.138114,59305.0,59304.0,0.00252911]
[1726579073598,0.0064,59305.0,59304.0,0.33215911]
[1726579074596,0.0064,59305.0,59304.0,0.24784411]
[1726579074787,0.0004,59305.0,59304.0,0.24684411]
[1726579074980,0.0044,59305.0,59304.0,0.24684411]
[1726579075686,0.0044,59305.0,59304.0,0.33115911]
[1726579076288,0.0044,59305.0,59304.0,0.24684411]
[1726579076684,0.0044,59305.0,59304.0,0.33115911]
[1726579076993,0.084303,59313.0,59306.0,0.084312]
[1726579077299,0.084303,59313.0,59305.0,0.50584]
[1726579077300,0.084299,59316.0,59315.0,0.084298]
[1726579077592,0.084299,59316.0,59315.0,0.084698]
[1726579079096,0.095299,59316.0,59315.0,0.10705577]
[1726579080495,0.084299,59316.0,59315.0,0.10605577]
[1726579080689,0.085299,59316.0,59315.0,0.10605577]
[1726579081299,0.001,59316.0,59315.0,0.10605577]
[1726579082599,0.001,59316.0,59315.0,0.26605577]
[1726579082903,0.1639,59331.0,59315.0,1.28751777]
[1726579082904,0.0039,59331.0,59315.0,1.28751777]